fUSD/lending_fUSD_20250507
["ID","MTS","AMOUNT","RATE_DAILY","PERIOD"]
[360201603,1746617444834,-450.0,0.00019985,2]
[360201604,1746617444843,-450.0,0.00019985,2]
[360201605,1746617444856,-450.0,0.00019985,2]
[360201606,1746617444866,-450.0,0.00019985,2]
[360201607,1746617444876,-450.0,0.00019985,2]
[360201608,1746617444886,-450.0,0.00019985,2]
[360201609,1746617444896,-450.0,0.00019985,2]
[360201610,1746617444915,-1228.67,0.00019985,2]
[360201611,1746617444929,-450.0,0.00019985,2]
[360201612,1746617444945,-450.0,0.00019985,2]
[360201613,1746617444959,-1377.21,0.00019985,2]
[360201614,1746617444971,-11817.52,0.00019985,2]
[360201615,1746617444983,-450.0,0.00019985,2]
[360201616,1746617444994,-3984.42,0.00019985,2]
[360201617,1746617445007,-450.0,0.00019985,2]
[360201618,1746617445020,-176.33862059,0.00019986,2]
[360201619,1746617445032,-886.4931308,0.00019986,2]
[360201620,1746617445043,-2422.643603,0.00019986,2]
[360201621,1746617445055,-465.80006864,0.00019989,2]
[360201622,1746617445068,-450.0,0.00019989,2]
[360201623,1746617445080,-450.0,0.00019989,2]
[360201624,1746617445093,-388.11,0.00019989,2]
[360201625,1746617445106,-30242.33795649,0.0001999,2]
[360201626,1746617445118,-176.33862059,0.0001999,2]
[360201627,1746617445129,-550.30813027,0.00019995,2]
[360201628,1746617445139,-321.17,0.00019995,2]
[360201629,1746617445152,-206.3490283,0.00019995,2]
[360201630,1746617445164,-205.1191015,0.00019995,2]
[360201631,1746617445178,-500.0,0.00019995,2]
[360201632,1746617445189,-500.0,0.00019995,2]
[360201633,1746617445202,-500.0,0.00019995,2]
[360201634,1746617445214,-500.0,0.00019995,2]
[360201636,1746617445227,-500.0,0.00019995,2]
[360201637,1746617445239,-577.58333854,0.00019995,2]
[360201638,1746617445251,-500.0,0.00019995,2]
[360201639,1746617445262,-500.0,0.00019995,2]
[360201641,1746617445275,-500.0,0.00019995,2]
[360201642,1746617445287,-172.10129508,0.00019995,2]
[360201643,1746617445298,-450.0,0.00019995,2]
[360201644,1746617445310,-450.0,0.00019995,2]
[360201645,1746617445321,-450.0,0.00019995,2]
[360201647,1746617445335,-450.0,0.00019995,2]
[360201648,1746617445346,-450.0,0.00019995,2]
[360201649,1746617445358,-500.0,0.00019995,2]
[360201650,1746617445370,-250.0,0.00019995,2]
[360201651,1746617445381,-547.43514998,0.00019995,2]
[360201653,1746617445392,-450.0,0.00019995,2]
[360201654,1746617445405,-450.0,0.00019995,2]
[360201655,1746617445419,-450.0,0.00019995,2]
[360201656,1746617445431,-873.3,0.00019995,2]
[360201657,1746617445442,-873.3,0.00019995,2]
[360201658,1746617445454,-450.0,0.00019995,2]
[360201659,1746617445469,-450.0,0.00019995,2]
[360201660,1746617445480,-553.05309995,0.00019995,2]
[360201661,1746617445493,-450.0,0.00019995,2]
[360201662,1746617445504,-450.0,0.00019995,2]
[360201663,1746617445516,-450.0,0.00019995,2]
[360201664,1746617445526,-212.40868321,0.00019995,2]
[360201665,1746617445536,-450.0,0.00019995,2]
[360201666,1746617445547,-460.02,0.00019995,2]
[360201667,1746617445559,-376939.42037593,0.00019996,2]
[360201668,1746617445570,-461.33695156,0.00019997,2]
[360201669,1746617445582,-450.0,0.00019997,2]
[360201670,1746617445596,-450.0,0.00019997,2]
[360201671,1746617445607,-450.0,0.00019997,2]
[360201672,1746617445617,-450.0,0.00019997,2]
[360201673,1746617445627,-450.0,0.00019997,2]
[360201674,1746617445637,-450.0,0.00019997,2]
[360201675,1746617445647,-571.46369925,0.00019997,2]
[360201676,1746617445658,-450.0,0.00019997,2]
[360201677,1746617445669,-450.0,0.00019997,2]
[360201678,1746617445681,-450.0,0.00019997,2]
[360201679,1746617445694,-450.0,0.00019997,2]
[360201680,1746617445705,-450.0,0.00019997,2]
[360201681,1746617445716,-450.0,0.00019997,2]
[360201682,1746617445727,-450.0,0.00019997,2]
[360201683,1746617445738,-450.0,0.00019997,2]
[360201684,1746617445749,-450.0,0.00019997,2]
[360201685,1746617445759,-462.20981104,0.00019997,2]
[360201686,1746617445769,-450.0,0.00019997,2]
[360201687,1746617445779,-520.14886938,0.00019997,2]
[360201688,1746617445791,-450.0,0.00019997,2]
[360201689,1746617445801,-450.0,0.00019997,2]
[360201690,1746617445813,-450.0,0.00019997,2]
[360201691,1746617445823,-450.0,0.00019997,2]
[360201692,1746617445834,-450.0,0.00019997,2]
[360201693,1746617445845,-450.0,0.00019997,2]
[360201694,1746617445856,-518.29408236,0.00019997,2]
[360201695,1746617445868,-450.0,0.00019997,2]
[360201696,1746617445881,-450.0,0.00019997,2]
[360201697,1746617445893,-450.0,0.00019997,2]
[360201698,1746617445906,-450.0,0.00019997,2]
[360201699,1746617445919,-450.0,0.00019997,2]
[360201701,1746617445931,-357.35317733,0.00019997,2]
[360201703,1746617445944,-450.0,0.00019997,2]
[360201705,1746617445954,-450.0,0.00019997,2]
[360201707,1746617445965,-450.0,0.00019997,2]
[360201708,1746617445975,-450.0,0.00019997,2]
[360201709,1746617445986,-450.0,0.00019997,2]
[360201710,1746617445997,-450.0,0.00019997,2]
[360201711,1746617446008,-450.0,0.00019997,2]
[360201712,1746617446019,-456.28960319,0.00019997,2]
[360201713,1746617446030,-450.0,0.00019997,2]
[360201714,1746617446041,-450.0,0.00019997,2]
[360201715,1746617446052,-538.8532877,0.00019997,2]
[360201716,1746617446063,-450.0,0.00019997,2]
[360201717,1746617446074,-450.0,0.00019997,2]
[360201718,1746617446085,-450.0,0.00019997,2]
[360201719,1746617446096,-466.0,0.00019997,2]
[360201720,1746617446107,-461.61160083,0.00019997,2]
[360201721,1746617446118,-450.0,0.00019997,2]
[360201722,1746617446128,-450.0,0.00019997,2]
[360201723,1746617446140,-490.0,0.00019997,2]
[360201724,1746617446150,-450.0,0.00019997,2]
[360201725,1746617446161,-300.0,0.00019997,2]
[360201726,1746617446172,-450.0,0.00019997,2]
[360201727,1746617446183,-450.0,0.00019997,2]
[360201728,1746617446193,-471.03077245,0.00019997,2]
[360201729,1746617446204,-450.0,0.00019997,2]
[360201730,1746617446215,-450.0,0.00019997,2]
[360201731,1746617446227,-450.0,0.00019997,2]
[360201732,1746617446238,-450.0,0.00019997,2]
[360201733,1746617446249,-482.47655724,0.00019997,2]
[360201734,1746617446260,-450.0,0.00019997,2]
[360201735,1746617446270,-450.0,0.00019997,2]
[360201736,1746617446281,-490.0,0.00019997,2]
[360201737,1746617446292,-450.0,0.00019997,2]
[360201738,1746617446303,-450.0,0.00019997,2]
[360201739,1746617446314,-450.0,0.00019997,2]
[360201740,1746617446325,-450.0,0.00019997,2]
[360201741,1746617446337,-450.0,0.00019997,2]
[360201742,1746617446348,-477.05331116,0.00019997,2]
[360201743,1746617446359,-450.0,0.00019997,2]
[360201744,1746617446370,-340.8432686,0.00019997,2]
[360201745,1746617446381,-450.0,0.00019997,2]
[360201746,1746617446391,-472.3541391,0.00019997,2]
[360201747,1746617446402,-450.0,0.00019997,2]
[360201748,1746617446416,-450.0,0.00019997,2]
[360201749,1746617446427,-873.3,0.00019997,2]
[360201750,1746617446438,-450.0,0.00019997,2]
[360201751,1746617446450,-477.78927178,0.00019997,2]
[360201752,1746617446460,-450.0,0.00019997,2]
[360201753,1746617446471,-450.0,0.00019997,2]
[360201754,1746617446481,-504.67890109,0.00019997,2]
[360201755,1746617446492,-450.0,0.00019997,2]
[360201756,1746617446503,-189.56294831,0.00019997,2]
[360201757,1746617446513,-450.0,0.00019997,2]
[360201758,1746617446526,-450.0,0.00019997,2]
[360201759,1746617446536,-450.0,0.00019997,2]
[360201760,1746617446547,-450.0,0.00019997,2]
[360201761,1746617446558,-478.72,0.00019997,2]
[360201762,1746617446568,-450.0,0.00019997,2]
[360201763,1746617446579,-467.78995365,0.00019997,2]
[360201764,1746617446589,-430.0,0.00019997,2]
[360201765,1746617446599,-481.74623044,0.00019997,2]
[360201766,1746617446609,-450.0,0.00019997,2]
[360201767,1746617446620,-449.93949605,0.00019997,2]
[360201768,1746617446630,-467.98352338,0.00019997,2]
[360201769,1746617446641,-450.0,0.00019998,2]
[360201770,1746617446651,-450.0,0.00019998,2]
[360201771,1746617446661,-1000.0,0.00019998,2]
[360201772,1746617446671,-397.40768691,0.00019998,2]
[360201773,1746617446681,-450.0,0.00019998,2]
[360201774,1746617446691,-450.0,0.00019998,2]
[360201775,1746617446702,-450.0,0.00019998,2]
[360201776,1746617446712,-450.0,0.00019998,2]
[360201777,1746617446723,-450.0,0.00019998,2]
[360201778,1746617446733,-224.40946704,0.00019998,2]
[360201779,1746617446743,-450.0,0.00019998,2]
[360201780,1746617446754,-450.0,0.00019998,2]
[360201781,1746617446764,-450.0,0.00019998,2]
[360201782,1746617446774,-450.0,0.00019998,2]
[360201783,1746617446785,-450.0,0.00019998,2]
[360201784,1746617446795,-450.0,0.00019998,2]
[360201785,1746617446805,-450.0,0.00019998,2]
[360201786,1746617446815,-450.0,0.00019998,2]
[360201787,1746617446825,-450.0,0.00019998,2]
[360201788,1746617446835,-450.0,0.00019998,2]
[360201789,1746617446845,-450.0,0.00019998,2]
[360201790,1746617446855,-387.68864713,0.00019998,2]
[360201791,1746617446865,-41380.82,0.00019998,2]
[360201792,1746617446874,-41380.82,0.00019998,2]
[360201793,1746617446884,-450.0,0.00019998,2]
[360201794,1746617446894,-315.0398716,0.00019998,2]
[360201795,1746617446904,-450.0,0.00019998,2]
[360201796,1746617446915,-450.0,0.00019998,2]
[360201797,1746617446924,-450.0,0.00019998,2]
[360201798,1746617446934,-500.0,0.00019998,2]
[360201799,1746617446944,-730.95,0.00019998,2]
[360201800,1746617446954,-730.95,0.00019998,2]
[360201801,1746617446964,-575.42,0.00019998,2]
[360201802,1746617446974,-575.42,0.00019998,2]
[360201803,1746617446984,-450.0,0.00019998,2]
[360201804,1746617446994,-450.0,0.00019998,2]
[360201805,1746617447005,-450.0,0.00019998,2]
[360201806,1746617447015,-236.05190132,0.00019998,2]
[360201807,1746617447026,-164.5,0.00019998,2]
[360201808,1746617447036,-450.0,0.00019998,2]
[360201809,1746617447047,-450.0,0.00019998,2]
[360201810,1746617447057,-450.0,0.00019998,2]
[360201811,1746617447068,-450.0,0.00019998,2]
[360201812,1746617447078,-450.0,0.00019998,2]
[360201813,1746617447088,-450.0,0.00019998,2]
[360201814,1746617447098,-537.23,0.00019998,2]
[360201815,1746617447108,-450.0,0.00019998,2]
[360201816,1746617447118,-450.0,0.00019998,2]
[360201817,1746617447128,-450.0,0.00019998,2]
[360201819,1746617447138,-450.0,0.00019998,2]
[360201820,1746617447149,-450.0,0.00019998,2]
[360201821,1746617447159,-450.0,0.00019998,2]
[360201822,1746617447169,-450.0,0.00019998,2]
[360201823,1746617447180,-450.0,0.00019998,2]
[360201824,1746617447190,-873.3,0.00019998,2]
[360201825,1746617447200,-450.0,0.00019998,2]
[360201826,1746617447210,-450.0,0.00019998,2]
[360201827,1746617447221,-450.0,0.00019998,2]
[360201828,1746617447231,-450.0,0.00019998,2]
[360201829,1746617447242,-450.0,0.00019998,2]
[360201830,1746617447252,-450.0,0.00019998,2]
[360201831,1746617447263,-450.0,0.00019998,2]
[360201832,1746617447274,-450.0,0.00019998,2]
[360201833,1746617447284,-390.66,0.00019998,2]
[360201834,1746617447294,-1228.67,0.00019998,2]
[360201835,1746617447304,-1228.67,0.00019998,2]
[360201836,1746617447315,-450.0,0.00019998,2]
[360201837,1746617447324,-450.0,0.00019998,2]
[360201838,1746617447334,-450.0,0.00019998,2]
[360201839,1746617447343,-450.0,0.00019998,2]
[360201840,1746617447352,-450.0,0.00019998,2]
[360201841,1746617447362,-450.0,0.00019998,2]
[360201842,1746617447371,-1377.21,0.00019998,2]
[360201843,1746617447380,-1377.21,0.00019998,2]
[360201844,1746617447390,-450.0,0.00019998,2]
[360201845,1746617447399,-450.0,0.00019998,2]
[360201846,1746617447617,-11817.52,0.00019998,2]
[360201847,1746617447711,-11817.52,0.00019998,2]
[360201848,1746617447727,-464.87,0.00019998,2]
[360201849,1746617447736,-450.0,0.00019998,2]
[360201850,1746617447746,-450.0,0.00019998,2]
[360201851,1746617447755,-958.44,0.00019998,2]
[360201852,1746617447764,-450.0,0.00019998,2]
[360201853,1746617447774,-450.0,0.00019998,2]
[360201854,1746617447783,-3984.42,0.00019998,2]
[360201855,1746617447792,-3984.42,0.00019998,2]
[360201856,1746617447801,-450.0,0.00019998,2]
[360201857,1746617447810,-450.0,0.00019998,2]
[360201858,1746617447819,-5759.44671603,0.00019999,2]
[360201859,1746617447828,-450.0,0.00019999,2]
[360201860,1746617447839,-450.94,0.00019999,2]
[360201861,1746617447848,-450.0,0.00019999,2]
[360201862,1746617447858,-450.0,0.00019999,2]
[360201863,1746617447867,-450.0,0.00019999,2]
[360201864,1746617447876,-450.0,0.00019999,2]
[360201865,1746617447885,-450.0,0.00019999,2]
[360201866,1746617447894,-450.0,0.00019999,2]
[360201867,1746617447904,-450.0,0.00019999,2]
[360201868,1746617447913,-450.0,0.00019999,2]
[360201869,1746617447922,-450.0,0.00019999,2]
[360201870,1746617447931,-450.0,0.00019999,2]
[360201871,1746617447940,-450.0,0.00019999,2]
[360201872,1746617447950,-450.0,0.00019999,2]
[360201873,1746617447959,-450.0,0.00019999,2]
[360201874,1746617447968,-450.0,0.00019999,2]
[360201875,1746617447977,-450.0,0.00019999,2]
[360201876,1746617447987,-318.75807153,0.00019999,2]
[360201877,1746617447995,-450.0,0.00019999,2]
[360201878,1746617448005,-450.0,0.00019999,2]
[360201879,1746617448014,-450.0,0.00019999,2]
[360201880,1746617448023,-450.0,0.00019999,2]
[360201881,1746617448033,-450.0,0.00019999,2]
[360201882,1746617448042,-450.0,0.00019999,2]
[360201883,1746617448052,-301.98617385,0.00019999,2]
[360201884,1746617448063,-450.0,0.00019999,2]
[360201885,1746617448073,-450.0,0.00019999,2]
[360201886,1746617448083,-450.0,0.00019999,2]
[360201887,1746617448093,-450.0,0.00019999,2]
[360201888,1746617448103,-181.02728098,0.00019999,2]
[360201889,1746617448112,-450.0,0.00019999,2]
[360201890,1746617448122,-450.0,0.00019999,2]
[360201891,1746617448132,-450.0,0.00019999,2]
[360201892,1746617448141,-450.0,0.00019999,2]
[360201893,1746617448151,-365.73797129,0.00019999,2]
[360201894,1746617448161,-450.0,0.00019999,2]
[360201895,1746617448171,-450.0,0.00019999,2]
[360201896,1746617448180,-450.0,0.00019999,2]
[360201897,1746617448190,-200.0,0.00019999,2]
[360201898,1746617448200,-450.0,0.00019999,2]
[360201899,1746617448209,-450.0,0.00019999,2]
[360201900,1746617448219,-450.0,0.00019999,2]
[360201901,1746617448228,-387.2,0.00019999,2]
[360201902,1746617448238,-450.0,0.00019999,2]
[360201903,1746617448247,-450.0,0.00019999,2]
[360201904,1746617448257,-450.0,0.00019999,2]
[360201905,1746617448266,-450.0,0.00019999,2]
[360201906,1746617448275,-450.0,0.00019999,2]
[360201907,1746617448285,-450.0,0.00019999,2]
[360201908,1746617448294,-450.0,0.00019999,2]
[360201909,1746617448304,-450.0,0.00019999,2]
[360201910,1746617448313,-450.0,0.00019999,2]
[360201911,1746617448323,-450.0,0.00019999,2]
[360201912,1746617448333,-450.0,0.00019999,2]
[360201913,1746617448342,-403.52019394,0.00019999,2]
[360201914,1746617448352,-450.0,0.00019999,2]
[360201915,1746617448361,-450.0,0.00019999,2]
[360201916,1746617448371,-450.0,0.00019999,2]
[360201917,1746617448380,-450.0,0.00019999,2]
[360201918,1746617448390,-450.0,0.00019999,2]
[360201919,1746617448399,-450.0,0.00019999,2]
[360201920,1746617448409,-450.0,0.00019999,2]
[360201921,1746617448422,-450.0,0.00019999,2]
[360201922,1746617448432,-450.0,0.00019999,2]
[360201923,1746617448441,-450.0,0.00019999,2]
[360201924,1746617448451,-450.0,0.00019999,2]
[360201925,1746617448460,-450.0,0.00019999,2]
[360201926,1746617448470,-450.0,0.00019999,2]
[360201927,1746617448479,-450.0,0.00019999,2]
[360201928,1746617448490,-450.0,0.00019999,2]
[360201929,1746617448499,-41380.82,0.00019999,2]
[360201930,1746617448509,-41380.82,0.00019999,2]
[360201931,1746617448518,-41380.82,0.00019999,2]
[360201932,1746617448528,-450.0,0.00019999,2]
[360201933,1746617448538,-450.0,0.00019999,2]
[360201934,1746617448548,-450.0,0.00019999,2]
[360201935,1746617448558,-450.0,0.00019999,2]
[360201936,1746617448569,-385.44108122,0.00019999,2]
[360201937,1746617448579,-450.0,0.00019999,2]
[360201938,1746617448588,-252.23894133,0.00019999,2]
[360201939,1746617448598,-20262.770772,0.00019999,2]
[360201940,1746617448609,-450.0,0.00019999,2]
[360201941,1746617448618,-450.0,0.00019999,2]
[360201942,1746617448627,-500.0,0.00019999,2]
[360201943,1746617448637,-500.0,0.00019999,2]
[360201944,1746617448647,-554.45,0.00019999,2]
[360201945,1746617448657,-730.95,0.00019999,2]
[360201946,1746617448666,-730.95,0.00019999,2]
[360201947,1746617448675,-730.95,0.00019999,2]
[360201948,1746617448685,-575.42,0.00019999,2]
[360201949,1746617448694,-575.42,0.00019999,2]
[360201950,1746617448704,-575.42,0.00019999,2]
[360201951,1746617448714,-450.0,0.00019999,2]
[360201952,1746617448724,-450.0,0.00019999,2]
[360201953,1746617448733,-450.0,0.00019999,2]
[360201954,1746617448743,-450.0,0.00019999,2]
[360201955,1746617448752,-450.0,0.00019999,2]
[360201956,1746617448763,-450.0,0.00019999,2]
[360201957,1746617448772,-551.0,0.00019999,2]
[360201958,1746617448782,-450.0,0.00019999,2]
[360201959,1746617448792,-450.0,0.00019999,2]
[360201960,1746617448801,-450.0,0.00019999,2]
[360201961,1746617448811,-270.38704527,0.00019999,2]
[360201962,1746617448821,-536.01,0.00019999,2]
[360201963,1746617448830,-259.36,0.00019999,2]
[360201964,1746617448840,-450.0,0.00019999,2]
[360201965,1746617448850,-450.0,0.00019999,2]
[360201966,1746617448860,-450.0,0.00019999,2]
[360201967,1746617448869,-537.23,0.00019999,2]
[360201968,1746617448879,-537.23,0.00019999,2]
[360201969,1746617448888,-537.23,0.00019999,2]
[360201970,1746617448897,-165.36,0.00019999,2]
[360201971,1746617448907,-450.0,0.00019999,2]
[360201972,1746617448916,-450.0,0.00019999,2]
[360201973,1746617448926,-450.0,0.00019999,2]
[360201974,1746617448935,-450.0,0.00019999,2]
[360201975,1746617448945,-450.0,0.00019999,2]
[360201976,1746617448954,-450.0,0.00019999,2]
[360201977,1746617448963,-450.0,0.00019999,2]
[360201978,1746617448974,-450.0,0.00019999,2]
[360201979,1746617448983,-450.0,0.00019999,2]
[360201980,1746617448993,-450.0,0.00019999,2]
[360201981,1746617449003,-450.0,0.00019999,2]
[360201982,1746617449013,-450.0,0.00019999,2]
[360201983,1746617449022,-176.0,0.00019999,2]
[360201984,1746617449032,-450.0,0.00019999,2]
[360201985,1746617449041,-301.6,0.00019999,2]
[360201986,1746617449051,-450.0,0.00019999,2]
[360201987,1746617449060,-450.0,0.00019999,2]
[360201988,1746617449070,-450.0,0.00019999,2]
[360201989,1746617449079,-873.3,0.00019999,2]
[360201990,1746617449089,-873.3,0.00019999,2]
[360201991,1746617449098,-873.3,0.00019999,2]
[360201992,1746617449109,-873.3,0.00019999,2]
[360201993,1746617449118,-873.3,0.00019999,2]
[360201994,1746617449128,-873.3,0.00019999,2]
[360201995,1746617449137,-873.3,0.00019999,2]
[360201996,1746617449147,-873.3,0.00019999,2]
[360201997,1746617449157,-873.3,0.00019999,2]
[360201998,1746617449166,-873.3,0.00019999,2]
[360201999,1746617449176,-873.3,0.00019999,2]
[360202000,1746617449185,-873.3,0.00019999,2]
[360202001,1746617449194,-873.3,0.00019999,2]
[360202003,1746617449203,-873.3,0.00019999,2]
[360202004,1746617449213,-873.3,0.00019999,2]
[360202005,1746617449223,-873.3,0.00019999,2]
[360202006,1746617449231,-873.3,0.00019999,2]
[360202007,1746617449241,-450.0,0.00019999,2]
[360202008,1746617449251,-450.0,0.00019999,2]
[360202009,1746617449261,-873.37,0.00019999,2]
[360202010,1746617449270,-450.0,0.00019999,2]
[360202011,1746617449280,-450.0,0.00019999,2]
[360202012,1746617449290,-573.1,0.00019999,2]
[360202013,1746617449300,-450.0,0.00019999,2]
[360202014,1746617449309,-450.0,0.00019999,2]
[360202015,1746617449319,-450.0,0.00019999,2]
[360202016,1746617449329,-450.0,0.00019999,2]
[360202017,1746617449339,-450.0,0.00019999,2]
[360202018,1746617449349,-450.0,0.00019999,2]
[360202019,1746617449359,-450.0,0.00019999,2]
[360202020,1746617449369,-450.0,0.00019999,2]
[360202021,1746617449379,-1228.67,0.00019999,2]
[360202022,1746617449389,-1228.67,0.00019999,2]
[360202023,1746617449399,-1228.67,0.00019999,2]
[360202024,1746617449409,-450.0,0.00019999,2]
[360202025,1746617449423,-450.0,0.00019999,2]
[360202026,1746617449433,-450.0,0.00019999,2]
[360202027,1746617449442,-450.0,0.00019999,2]
[360202028,1746617449452,-450.0,0.00019999,2]
[360202029,1746617449461,-1377.21,0.00019999,2]
[360202030,1746617449471,-1377.21,0.00019999,2]
[360202031,1746617449480,-1377.21,0.00019999,2]
[360202032,1746617449490,-450.0,0.00019999,2]
[360202033,1746617449500,-450.0,0.00019999,2]
[360202034,1746617449510,-450.0,0.00019999,2]
[360202035,1746617449519,-450.0,0.00019999,2]
[360202036,1746617449529,-450.0,0.00019999,2]
[360202037,1746617449539,-450.0,0.00019999,2]
[360202038,1746617449549,-265.439215,0.00019999,2]
[360202039,1746617449558,-540.65,0.00019999,2]
[360202040,1746617449567,-11817.52,0.00019999,2]
[360202041,1746617449577,-11817.52,0.00019999,2]
[360202042,1746617449588,-11817.52,0.00019999,2]
[360202043,1746617449597,-464.87,0.00019999,2]
[360202044,1746617449606,-464.87,0.00019999,2]
[360202045,1746617449616,-464.87,0.00019999,2]
[360202046,1746617449625,-450.0,0.00019999,2]
[360202047,1746617449634,-958.44,0.00019999,2]
[360202048,1746617449643,-958.44,0.00019999,2]
[360202049,1746617449653,-958.44,0.00019999,2]
[360202050,1746617449662,-450.0,0.00019999,2]
[360202051,1746617449671,-450.0,0.00019999,2]
[360202052,1746617449680,-450.0,0.00019999,2]
[360202053,1746617449689,-3984.42,0.00019999,2]
[360202054,1746617449699,-3984.42,0.00019999,2]
[360202055,1746617449708,-3984.42,0.00019999,2]
[360202056,1746617449718,-450.0,0.00019999,2]
[360202057,1746617449727,-450.0,0.00019999,2]
[360202058,1746617449736,-450.0,0.00019999,2]
[360202059,1746617449745,-288.2639635,0.0002,2]
[360202060,1746617449754,-276694.25408586,0.0002,2]
[360202061,1746617449763,-136591.77526303,0.0002,2]
[360202062,1746617449773,-5653.86589122,0.0002,2]
[360202063,1746617449782,-3783.37527336,0.0002,2]
[360202064,1746617449791,-401502.84996113,0.0002,2]
[360202065,1746617449997,-450.0,0.00019662,2]
[360202066,1746617450007,-2185.004524,0.0002,2]
[360202067,1746617450018,-779.30458002,0.0002,2]
[360202068,1746617450030,-917.65074819,0.0002,2]
[360202069,1746617450041,-1349.45869706,0.0002,2]
[360202070,1746617450056,-4387.72407265,0.0002,2]
[360202071,1746617450067,-899.54845639,0.0002,2]
[360202072,1746617450080,-9192.43820384,0.0002,2]
[360202073,1746617450252,-450.0,0.0001958,2]
[360202074,1746617450262,-450.0,0.00019633,2]
[360202075,1746617450272,-450.0,0.00019633,2]
[360202076,1746617450282,-450.0,0.00019663,2]
[360202077,1746617450291,-6767.0,0.00019676,2]
[360202078,1746617450301,-411.66902918,0.00019699,2]
[360202079,1746617450310,-450.0,0.00019699,2]
[360202080,1746617450320,-151.0,0.00019791,2]
[360202081,1746617450329,-12093.51084273,0.0002,2]
[360202082,1746617450341,-850.0,0.0002,2]
[360202083,1746617453700,-12917.9828306,0.0002,2]
[360202084,1746617453853,-450.0,0.0001958,2]
[360202085,1746617453862,-450.0,0.0001958,2]
[360202086,1746617453871,-450.0,0.00019633,2]
[360202087,1746617453880,-450.0,0.00019662,2]
[360202088,1746617453890,-450.0,0.00019663,2]
[360202089,1746617453899,-879.0,0.00019676,2]
[360202090,1746617453909,-569.09251629,0.00019799,2]
[360202091,1746617453918,-799.41309124,0.00019883,2]
[360202092,1746617453927,-1252.6538794,0.0002,2]
[360202093,1746617453937,-27178.46180099,0.0002,2]
[360202094,1746617453948,-999.14301235,0.0002,2]
[360202095,1746617453959,-11012.14194646,0.0002,2]
[360202096,1746617453973,-10237.35,0.0002,2]
[360202097,1746617453984,-17235.8,0.0002,2]
[360202098,1746617453995,-6164.64,0.0002,2]
[360202099,1746617454011,-450.0,0.00019673,2]
[360202100,1746617454020,-2205.63950964,0.0002,2]
[360202101,1746617454043,-9453.77683153,0.0002,2]
[360202102,1746617454054,-261.81012156,0.0002,2]
[360202103,1746617454071,-450.0,0.0001958,2]
[360202104,1746617454081,-8218.8,0.0002,2]
[360202105,1746617454092,-3183.84230703,0.0002,2]
[360202106,1746617454422,380.0,0.000194,2]
[360202107,1746617461318,150.0,0.00019112,7]
[360202108,1746617481522,2500.0,0.00019496,2]
[360202109,1746617513406,228.01,0.00016989,2]
[360202110,1746617513642,228.01,0.00019252,2]
[360202116,1746617540012,1776.8112,0.00019496,2]
[360202117,1746617549908,250.0,0.00017,2]